bitfinex/quotes_SOLUSD_20260213
["timestamp","ask_amount","ask_price","bid_price","bid_amount"]
[1770953829571,0.78677079,79.309,79.29,0.2]
[1770953829742,4.18842204,79.3,79.29,0.2]
[1770953830152,0.78677079,79.309,79.29,0.2]
[1770953830966,0.78677079,79.307,79.29,0.2]
[1770953831169,4.18842204,79.3,79.29,0.2]
[1770953831965,4.18842204,79.3,79.284,0.84843339]
[1770953832340,4.97519283,79.3,79.278,57.54]
[1770953832540,4.18842204,79.29,79.277,0.84843339]
[1770953832951,4.18842204,79.3,79.278,0.84843339]
[1770953834752,4.18842204,79.3,79.279,12.61368079]
[1770953835051,4.18842204,79.3,79.28,0.84843339]
[1770953835847,4.18842204,79.29,79.275,12.61430626]
[1770953836961,0.78677079,79.289,79.273,57.56]
[1770953837158,4.18842204,79.28,79.27,0.2]
[1770953838167,4.18842204,79.28,79.261,57.62]
[1770953838168,0.78677079,79.279,79.261,12.61641336]
[1770953838472,4.18842204,79.27,79.262,0.84843339]
[1770953838675,4.18842204,79.28,79.262,0.84843339]
[1770953839366,4.18842204,79.28,79.263,12.61622699]
[1770953840769,4.18842204,79.27,79.258,57.64]
[1770953840962,0.78677079,79.269,79.25,12.81829544]
[1770953841165,4.18842204,79.26,79.25,12.81829544]
[1770953841472,4.18842204,79.26,79.25,13.66672883]
[1770953843265,4.97519283,79.26,79.25,0.2]
[1770953843468,4.97519283,79.26,79.245,12.61907597]
[1770953843469,4.18842204,79.26,79.245,12.61907597]
[1770953843667,4.18842204,79.26,79.246,0.84843339]
[1770953843974,0.78677079,79.298,79.251,0.84843339]
[1770953844180,4.18842204,79.29,79.251,0.84843339]
[1770953844378,4.18842204,79.28,79.251,0.84843339]
[1770953844968,0.78677079,79.279,79.251,0.84843339]
[1770953845478,0.78677079,79.279,79.253,0.84843339]
[1770953846170,4.18842204,79.28,79.253,0.84843339]
[1770953846480,0.78677079,79.289,79.253,0.84843339]
[1770953847275,0.78677079,79.296,79.261,0.84843339]
[1770953847463,4.18842204,79.29,79.265,0.84843339]
[1770953848968,4.18842204,79.29,79.267,0.84843339]
[1770953849160,0.78677079,79.296,79.267,0.84843339]
[1770953849355,0.78677079,79.296,79.269,0.84843339]
[1770953850182,4.18842204,79.29,79.271,0.84843339]
[1770953852082,4.18842204,79.32,79.271,0.84843339]
[1770953852083,0.84016103,79.308,79.271,0.84843339]
[1770953852380,4.18842204,79.31,79.273,0.77487175]
[1770953852560,0.84016103,79.299,79.273,0.77487175]
[1770953853063,4.18842204,79.29,79.273,0.77487175]
[1770953853482,4.18842204,79.29,79.272,12.61479463]
[1770953853483,0.81664001,79.289,79.272,12.61479463]
[1770953853679,4.18842204,79.28,79.272,12.61479463]
[1770953853869,0.81664001,79.279,79.253,12.61781888]
[1770953854068,4.18842204,79.27,79.253,12.61781888]
[1770953855266,0.81664001,79.259,79.24,0.2]
[1770953855582,0.81664001,79.259,79.24,58.08]
[1770953855777,0.81664001,79.249,79.228,12.62166015]
[1770953856379,0.81664001,79.249,79.228,13.40621686]
[1770953856985,4.18842204,79.24,79.228,12.62166015]
[1770953857274,4.18842204,79.25,79.226,0.78455671]
[1770953859387,4.18842204,79.25,79.228,0.78455671]
[1770953860275,4.18842204,79.26,79.228,0.78455671]
[1770953860474,4.18842204,79.28,79.241,0.78455671]
[1770953860673,0.81664001,79.279,79.243,0.78455671]
[1770953860876,0.81664001,79.269,79.244,57.94]
[1770953861076,4.20145902,79.27,79.245,0.78455671]
[1770953861482,4.20145902,79.28,79.247,0.78455671]
[1770953861977,0.81664001,79.279,79.247,0.78455671]
[1770953862383,4.20145902,79.27,79.249,0.78455671]
[1770953862678,4.20145902,79.26,79.249,57.94]
[1770953862997,4.20145902,79.26,79.234,0.78455671]
[1770953864268,4.20145902,79.26,79.236,0.78455671]
[1770953865192,4.20145902,79.27,79.236,0.78455671]
[1770953865489,4.20145902,79.27,79.238,0.78455671]
[1770953865693,4.20145902,79.27,79.24,0.78455671]
[1770953865897,4.20145902,79.28,79.241,0.78455671]
[1770953866202,5.01809903,79.27,79.244,0.78455671]
[1770953866370,5.01809903,79.27,79.245,57.98]
[1770953866371,0.81664001,79.269,79.245,57.98]
[1770953866988,0.81664001,79.269,79.245,58.76455671]
[1770953867172,0.81664001,79.269,79.246,0.78455671]
[1770953867908,0.81664001,79.269,79.247,58.0]
[1770953868078,0.81664001,79.269,79.246,0.78455671]
[1770953868279,0.81664001,79.269,79.247,12.61877421]
[1770953870090,0.81664001,79.269,79.249,13.40301246]
[1770953870688,0.81664001,79.29,79.25,0.78455671]
[1770953870980,4.20145902,79.27,79.251,58.04]
[1770953871188,0.81664001,79.269,79.249,44.16459513]
[1770953871407,0.81664001,79.269,79.252,58.04]
[1770953872208,0.81664001,79.269,79.253,12.61781888]
[1770953873290,0.81664001,79.259,79.246,58.06]
[1770953874884,0.81664001,79.259,79.245,12.61903772]
[1770953875284,4.20145902,79.26,79.245,12.61903772]
[1770953875285,0.81664001,79.265,79.245,12.61903772]
[1770953875506,0.81664001,79.265,79.246,0.78455671]
[1770953877395,0.81664001,79.265,79.247,12.61877421]
[1770953878901,0.81664001,79.278,79.248,0.78455671]
[1770953879205,0.81664001,79.278,79.25,0.78455671]
[1770953879606,0.81664001,79.297,79.261,0.78455671]
[1770953880511,0.7829712,79.289,79.261,0.78455671]
[1770953880700,0.7829712,79.289,79.262,0.80828243]
[1770953880887,0.7829712,79.305,79.27,4.20145902]
[1770953881098,0.7829712,79.305,79.271,0.80828243]
[1770953881308,0.7829712,79.305,79.273,0.80828243]
[1770953881897,4.20145902,79.3,79.273,0.80828243]
[1770953882093,4.98443022,79.3,79.273,0.80828243]
[1770953882299,0.7829712,79.299,79.273,0.80828243]
[1770953883212,0.7829712,79.299,79.275,0.80828243]
[1770953885818,0.7829712,79.319,79.281,0.80828243]
[1770953886005,0.7829712,79.319,79.28,4.20145902]
[1770953886006,0.7829712,79.325,79.291,0.80828243]
[1770953886208,0.7829712,79.325,79.293,0.80828243]
[1770953886517,0.7829712,79.319,79.293,0.80828243]
[1770953886898,0.7829712,79.329,79.293,0.80828243]
[1770953887103,0.7829712,79.329,79.295,0.80828243]
[1770953891028,4.20145902,79.34,79.301,0.80828243]
[1770953891231,4.20145902,79.33,79.303,0.80828243]
[1770953892021,4.98443022,79.33,79.303,0.80828243]
[1770953892605,4.98443022,79.33,79.305,0.80828243]
[1770953893216,0.7829712,79.33,79.305,0.80828243]
[1770953893924,0.7829712,79.329,79.304,12.60970442]
[1770953894111,0.7829712,79.319,79.304,12.60970442]
[1770953894517,0.7829712,79.319,79.302,58.14]
[1770953895723,0.7829712,79.309,79.279,0.80828243]
[1770953895911,0.7829712,79.309,79.281,0.80828243]
[1770953896527,0.7829712,79.309,79.283,0.80828243]
[1770953896707,0.7829712,79.299,79.263,0.80828243]
[1770953896906,0.7829712,79.289,79.264,12.61606782]
[1770953897106,4.20145902,79.28,79.264,12.61606782]
[1770953897715,4.20145902,79.28,79.263,0.80828243]
[1770953897911,0.7829712,79.279,79.256,13.42554069]
[1770953898517,0.7829712,79.279,79.256,12.61725826]
[1770953898828,4.20145902,79.27,79.254,58.2]
[1770953899129,0.7829712,79.269,79.248,0.80828243]
[1770953899337,4.20145902,79.27,79.248,0.80828243]
[1770953900411,0.7829712,79.259,79.243,12.61941117]
[1770953901813,4.20145902,79.26,79.243,12.61941117]
[1770953902833,0.7829712,79.265,79.243,13.4276936]
[1770953903924,0.7829712,79.265,79.245,12.61909268]
[1770953904246,4.20145902,79.28,79.246,0.80828243]
[1770953904451,0.7829712,79.279,79.246,0.80828243]
[1770953905041,0.7829712,79.269,79.246,0.80828243]
[1770953905221,0.7829712,79.269,79.245,12.61909268]
[1770953906536,4.20145902,79.26,79.245,12.61909268]
[1770953907321,0.7829712,79.264,79.245,12.61909268]
[1770953908141,0.7829712,79.259,79.236,58.34]
[1770953908320,0.7829712,79.259,79.225,0.80828243]
[1770953908321,0.7829712,79.259,79.233,0.80828243]
[1770953908723,0.7829712,79.266,79.233,0.80828243]
[1770953909036,0.7829712,79.266,79.232,58.34]
[1770953909037,0.7829712,79.266,79.241,0.80828243]
[1770953909735,4.20145902,79.27,79.241,0.80828243]
[1770953909922,12.61377502,79.279,79.24,4.20145902]
[1770953909923,12.61377502,79.279,79.243,0.80828243]
[1770953910128,0.7829712,79.279,79.243,0.80828243]
[1770953910540,4.20145902,79.29,79.242,102.50849649]
[1770953910541,0.83626084,79.299,79.261,0.78437563]
[1770953910823,0.83626084,79.299,79.263,0.78437563]
[1770953911428,0.83626084,79.299,79.271,0.78437563]
[1770953912017,4.20145902,79.32,79.27,4.20145902]
[1770953912018,0.83626084,79.309,79.273,0.78437563]
[1770953912421,0.83626084,79.309,79.275,0.78437563]
[1770953912638,4.20145902,79.3,79.275,0.78437563]
[1770953912832,0.83626084,79.289,79.274,58.34]
[1770953913542,0.83626084,79.299,79.274,58.34]
[1770953913755,0.83626084,79.299,79.274,59.12437563]
[1770953913945,0.83626084,79.299,79.275,0.76476353]
[1770953914122,0.83626084,79.299,79.276,12.61415813]
[1770953915563,0.83626084,79.299,79.276,13.37892166]
[1770953917046,0.83626084,79.299,79.277,0.76476353]
[1770953918527,4.20145902,79.31,79.277,0.76476353]
[1770953918728,4.20145902,79.31,79.276,12.61415813]
[1770953918729,0.75476225,79.319,79.281,0.76476353]
[1770953918949,0.75476225,79.319,79.283,0.76476353]
[1770953919140,4.20145902,79.31,79.283,0.76476353]
[1770953919447,4.95622127,79.31,79.285,0.76476353]
[1770953919649,0.75476225,79.31,79.285,0.76476353]
[1770953923254,0.75476225,79.319,79.287,0.76476353]
[1770953923551,0.75476225,79.319,79.291,0.76476353]
[1770953925829,0.75476225,79.309,79.286,12.61256716]
[1770953926051,4.19615961,79.32,79.287,0.76476353]
[1770953926354,0.75476225,79.319,79.291,0.76476353]
[1770953927352,0.75476225,79.319,79.293,0.76476353]
[1770953930153,0.75476225,79.319,79.295,0.76476353]
[1770953930854,0.75476225,79.319,79.29,13.37661743]
[1770953931155,0.75476225,79.319,79.291,0.76476353]
[1770953932858,0.75476225,79.319,79.292,12.61161277]
[1770953933157,0.75476225,79.319,79.293,0.76476353]
[1770953934558,0.75476225,79.329,79.295,0.76476353]
[1770953936656,0.1,79.35,79.301,0.76476353]
[1770953936657,0.75476225,79.339,79.301,0.76476353]
[1770953937054,0.75476225,79.329,79.301,0.76476353]
[1770953937252,0.75476225,79.319,79.296,12.61097659]
[1770953937945,0.75476225,79.319,79.291,12.61168849]
[1770953939151,0.75476225,79.318,79.292,0.76476353]
[1770953939864,0.75476225,79.326,79.292,0.76476353]
[1770953941344,12.60636621,79.325,79.294,0.75835937]
[1770953941551,0.76964812,79.324,79.294,0.75835937]
[1770953944066,0.76964812,79.319,79.293,12.61145372]
[1770953944670,0.76964812,79.319,79.293,13.36981309]
[1770953945049,0.76964812,79.319,79.294,0.75835937]
[1770953945671,0.76964812,79.319,79.288,0.75835937]
[1770953945851,0.76964812,79.309,79.283,44.14565543]
[1770953946050,0.76964812,79.309,79.283,13.37140378]
[1770953947269,0.76964812,79.309,79.285,12.61272624]
[1770953947463,0.76964812,79.309,79.285,13.37108561]
[1770953947778,0.76964812,79.299,79.282,58.46]
[1770953947950,0.76964812,79.299,79.282,54.4387163]
[1770953948152,0.76964812,79.299,79.274,12.61431871]
[1770953949082,0.76964812,79.299,79.274,13.41006952]
[1770953949383,4.19615961,79.32,79.281,0.79575081]
[1770953949553,4.19615961,79.32,79.291,0.79575081]
[1770953949754,34.92,79.327,79.291,0.79575081]
[1770953949951,4.19615961,79.34,79.301,0.79575081]
[1770953950353,4.29615961,79.35,79.311,0.79575081]
[1770953950561,4.19615961,79.34,79.311,0.79575081]
[1770953951474,4.19615961,79.34,79.313,0.79575081]
[1770953953090,4.29615961,79.35,79.313,0.79575081]
[1770953953372,4.29615961,79.35,79.315,0.79575081]
[1770953953581,4.29615961,79.35,79.316,58.52]
[1770953953780,4.29615961,79.35,79.317,0.79575081]
[1770953954075,4.29615961,79.35,79.316,58.52]
[1770953954076,0.1,79.35,79.321,0.79575081]
[1770953954463,4.29615961,79.35,79.321,0.79575081]
[1770953955973,4.29615961,79.35,79.323,0.79575081]
[1770953957857,4.29615961,79.35,79.32,4.19615961]
[1770953957858,4.29615961,79.35,79.325,0.79575081]
[1770953959282,0.1,79.35,79.326,12.60620729]
[1770953959490,4.29615961,79.35,79.327,0.79575081]
[1770953959695,0.1,79.35,79.327,0.79575081]
[1770953959870,0.1,79.35,79.331,0.79575081]
[1770953960071,0.1,79.36,79.332,0.75835937]
[1770953960274,0.1,79.37,79.341,0.75835937]
[1770953960636,0.1,79.37,79.351,0.75835937]
[1770953960896,0.1,79.38,79.352,0.75835937]
[1770953961064,0.1,79.38,79.361,0.75835937]
[1770953961377,0.1,79.38,79.342,58.54]
[1770953961378,0.19127536,79.379,79.345,0.75835937]
[1770953962064,0.19080504,79.359,79.339,12.60409337]
[1770953962790,0.19033753,79.349,79.319,0.75835937]
[1770953962979,0.19033753,79.349,79.321,0.75835937]
[1770953963285,4.19615961,79.35,79.321,0.75835937]
[1770953963488,4.19615961,79.35,79.323,0.75835937]
[1770953963685,0.19033753,79.349,79.323,0.75835937]
[1770953967069,0.18849989,79.339,79.316,12.60779666]
[1770953967576,4.19615961,79.33,79.307,0.75835937]
[1770953968573,4.19615961,79.33,79.309,0.75835937]
[1770953969272,4.19615961,79.33,79.31,12.60875047]
[1770953970377,0.18660735,79.329,79.31,12.60875047]
[1770953970773,4.19615961,79.32,79.305,12.60939831]
[1770953971477,4.19615961,79.32,79.303,0.74883836]
[1770953973380,4.19615961,79.33,79.303,0.74883836]
[1770953973803,4.19615961,79.34,79.305,0.7196604]
[1770953973978,4.19615961,79.34,79.307,0.7196604]
[1770953976092,4.19615961,79.34,79.308,12.60906844]
[1770953976302,4.19615961,79.34,79.309,0.7196604]
[1770953976601,4.19615961,79.33,79.309,0.7196604]
[1770953976782,0.18218248,79.329,79.309,0.7196604]
[1770953976981,0.18218248,79.329,79.308,12.60906844]
[1770953977375,4.19615961,79.32,79.308,12.60906844]
[1770953977893,0.18218248,79.329,79.308,12.60906844]
[1770953978696,4.19615961,79.32,79.308,12.60906844]
[1770953978891,4.19615961,79.32,79.298,0.7196604]
[1770953979095,4.19615961,79.33,79.297,0.78632204]
[1770953979298,4.19615961,79.34,79.301,0.78632204]
[1770953980680,4.19615961,79.33,79.301,0.78632204]
[1770953980888,4.19615961,79.33,79.303,0.78632204]
[1770953981188,4.19615961,79.34,79.303,0.78632204]
[1770953982912,4.19419091,79.33,79.305,0.78632204]
[1770953983196,4.19419091,79.35,79.305,0.78632204]
[1770953983197,4.19419091,79.32,79.305,0.78632204]
[1770953983399,4.19419091,79.32,79.304,12.60970442]
[1770953983605,4.19419091,79.32,79.299,12.61044731]
[1770953986200,4.19419091,79.33,79.3,0.78632204]
[1770953986402,4.19419091,79.34,79.301,0.78632204]
[1770953986804,4.19419091,79.34,79.303,0.78632204]
[1770953987202,4.19419091,79.33,79.303,0.78632204]
[1770953987594,4.19419091,79.32,79.298,13.39685678]
[1770953987788,4.19419091,79.32,79.299,0.78632204]
[1770953992227,4.19419091,79.32,79.3,12.61034047]
[1770953992720,4.19419091,79.32,79.3,13.39666251]
[1770953994624,4.19419091,79.32,79.295,13.39745767]
[1770953994797,4.19419091,79.32,79.296,0.78632204]
[1770953996720,4.19419091,79.32,79.298,0.78632204]
[1770953997422,4.19419091,79.33,79.301,0.78632204]
[1770953998799,4.19419091,79.34,79.303,0.78632204]
[1770953999197,50.39410412,79.375,79.311,0.78632204]
[1770953999198,31.50051045,79.364,79.311,0.78632204]
[1770953999419,4.19419091,79.35,79.313,0.78632204]
[1770953999599,4.19419091,79.34,79.313,0.78632204]
[1770954000433,4.19419091,79.33,79.312,58.94]
[1770954000733,4.19419091,79.32,79.297,58.94]
[1770954001021,4.19419091,79.32,79.298,12.61065852]
[1770954001421,4.19419091,79.31,79.29,0.78632204]
[1770954003622,4.19419091,79.32,79.292,0.78632204]
[1770954004009,4.19419091,79.3,79.286,12.61251202]
[1770954004418,4.19419091,79.3,79.277,12.61387811]
[1770954004725,4.19419091,79.29,79.27,0.78632204]
[1770954005120,4.19419091,79.3,79.27,0.78632204]
[1770954005528,12.6104995,79.299,79.272,0.78632204]
[1770954006821,4.19419091,79.29,79.272,0.78632204]
[1770954008627,4.19419091,79.28,79.263,58.98]
[1770954008928,4.19419091,79.27,79.25,0.78632204]
[1770954009131,4.19419091,79.26,79.233,0.78632204]
[1770954009330,4.19419091,79.25,79.233,0.78632204]
[1770954010113,4.19419091,79.25,79.235,0.78632204]
[1770954011015,10.00675119,79.25,79.236,12.62052602]
[1770954011214,10.00675119,79.27,79.237,0.78632204]
[1770954011415,10.00675119,79.27,79.239,0.78632204]
[1770954011715,10.00675119,79.26,79.239,0.78632204]
[1770954011914,10.00675119,79.25,79.238,59.0]
[1770954012429,10.00675119,79.26,79.237,0.78632204]
[1770954013519,10.00675119,79.26,79.239,0.78632204]
[1770954015440,10.00675119,79.25,79.239,0.78632204]
[1770954016323,10.00675119,79.26,79.239,0.78632204]
[1770954016522,10.00675119,79.26,79.24,12.61988894]
[1770954016917,10.00675119,79.25,79.24,12.61988894]
[1770954018143,10.00675119,79.26,79.24,12.61988894]
[1770954019042,10.00675119,79.26,79.24,13.40621098]
[1770954020745,10.00675119,79.25,79.236,0.78632204]
[1770954023148,10.00675119,79.25,79.237,12.62036674]
[1770954024853,10.00675119,79.26,79.238,0.78632204]
[1770954025349,10.00675119,79.25,79.238,0.78632204]
[1770954025654,10.00675119,79.25,79.234,0.78632204]
[1770954027025,10.00675119,79.24,79.232,59.02]
[1770954027227,10.00675119,79.24,79.23,0.2]
[1770954027629,10.00675119,79.25,79.23,0.2]
[1770954028159,10.00675119,79.24,79.23,0.2]
[1770954029647,10.00675119,79.25,79.23,0.2]
[1770954029844,10.00675119,79.25,79.231,0.78632204]
[1770954030850,4.20332614,79.25,79.231,0.78632204]
[1770954031451,4.20332614,79.25,79.233,0.78632204]
[1770954033450,4.20332614,79.24,79.233,0.78632204]
[1770954034157,4.20332614,79.24,79.23,0.2]
[1770954035043,4.20332614,79.25,79.23,0.2]
[1770954036051,4.20332614,79.25,79.23,12.82142645]
[1770954036244,4.20332614,79.25,79.231,0.78632204]
[1770954039343,4.20332614,79.24,79.23,0.2]
[1770954040356,4.20332614,79.24,79.23,0.98632204]
[1770954040556,4.20332614,79.25,79.231,12.62132246]
[1770954043056,4.20364267,79.25,79.231,12.62132246]
[1770954045161,4.20364267,79.25,79.232,0.78632204]
[1770954045360,4.20364267,79.25,79.23,0.2]
[1770954045560,4.20364267,79.24,79.23,0.2]
[1770954045760,4.20364267,79.24,79.221,0.78632204]
[1770954049462,4.20364267,79.23,79.221,0.78632204]
[1770954050966,4.20364267,79.24,79.221,0.78632204]
[1770954051474,4.20364267,79.24,79.222,0.78632204]
[1770954053050,4.20364267,79.23,79.22,0.2]
[1770954053555,4.20364267,79.23,79.221,0.78632204]
[1770954053861,4.20364267,79.23,79.22,0.2]
[1770954056074,12.6200482,79.239,79.22,0.2]
[1770954056957,12.6200482,79.239,79.221,0.78632204]
[1770954057672,4.20364267,79.23,79.221,0.78632204]
[1770954058555,4.20364267,79.24,79.222,0.78632204]
[1770954063681,34.34,79.253,79.2,63.84364267]
[1770954063682,4.20364267,79.23,79.211,0.78632204]
[1770954064864,4.20364267,79.24,79.211,0.78632204]
[1770954066179,4.20364267,79.24,79.213,0.78632204]
[1770954068081,4.20364267,79.24,79.215,0.78632204]
[1770954070060,4.20364267,79.23,79.211,0.78632204]
[1770954070665,4.20364267,79.23,79.212,0.78632204]
[1770954071983,4.20364267,79.23,79.202,59.46]
[1770954071984,4.20364267,79.23,79.206,0.78632204]
[1770954073976,4.20364267,79.23,79.208,0.78632204]
[1770954077193,4.20364267,79.23,79.21,0.78632204]
[1770954078789,4.20364267,79.24,79.21,0.78632204]
[1770954079195,4.20364267,79.24,79.212,0.78632204]
[1770954081272,4.20364267,79.24,79.214,0.78632204]
[1770954083399,4.20364267,79.24,79.216,0.78632204]
[1770954084483,4.20364267,79.24,79.218,0.78632204]
[1770954086399,4.20364267,79.24,79.219,12.62323432]
[1770954088101,12.61919464,79.245,79.22,0.78632204]
[1770954088283,4.20364267,79.24,79.22,0.78632204]
[1770954093903,4.20364267,79.24,79.216,0.78632204]
[1770954096103,4.20364267,79.24,79.217,0.78632204]
[1770954100114,4.20364267,79.24,79.219,0.78632204]
[1770954100510,16.82353218,79.24,79.219,0.78632204]
[1770954101498,4.20364267,79.24,79.219,0.78632204]
[1770954101709,12.6168637,79.259,79.219,0.78632204]
[1770954101913,4.20364267,79.25,79.219,0.78632204]
[1770954102315,12.61845575,79.249,79.221,0.78632204]
[1770954102995,12.61689375,79.259,79.221,0.78632204]
[1770954104919,12.61689375,79.259,79.222,12.6227563]
[1770954105120,12.61689375,79.259,79.223,0.78632204]
[1770954105614,4.2023405,79.28,79.251,0.78632204]
[1770954108520,4.2023405,79.27,79.247,12.6187195]
[1770954109216,4.2023405,79.27,79.248,0.78632204]
[1770954109417,4.2023405,79.27,79.247,12.6187195]
[1770954109418,4.2023405,79.27,79.249,12.61845575]
[1770954109719,4.2023405,79.27,79.25,0.78632204]
[1770954113628,4.2023405,79.27,79.249,12.61845575]
[1770954113629,12.61103595,79.296,79.261,0.78632204]
[1770954114713,34.68,79.298,79.26,4.2023405]
[1770954114714,4.2023405,79.29,79.263,0.78632204]
[1770954116229,4.2023405,79.29,79.265,0.78632204]
[1770954119525,4.2023405,79.29,79.267,0.78632204]
[1770954120438,4.2023405,79.29,79.269,0.78632204]
[1770954120631,4.2023405,79.3,79.271,0.78632204]
[1770954121220,4.2023405,79.29,79.271,0.78632204]
[1770954121419,4.2023405,79.29,79.26,4.2023405]
[1770954121420,4.2023405,79.29,79.266,0.78632204]
[1770954122306,34.74,79.305,79.271,0.78632204]
[1770954122511,34.74,79.305,79.273,0.78632204]
[1770954122707,4.2023405,79.3,79.273,0.78632204]
[1770954128518,4.2023405,79.3,79.212,50.49695765]
[1770954128519,12.60757065,79.318,79.281,0.78632204]
[1770954128719,12.60757065,79.318,79.291,0.78632204]
[1770954130631,4.2023405,79.31,79.291,0.78632204]
[1770954130831,4.2023405,79.31,79.286,0.78632204]
[1770954132434,4.71729252,79.32,79.286,0.78632204]
[1770954132645,4.2023405,79.31,79.286,0.78632204]
[1770954133621,0.1,79.32,79.28,4.2023405]
[1770954133622,0.1,79.32,79.288,0.78632204]
[1770954133823,0.1,79.32,79.287,12.61240808]
[1770954133824,0.1,79.32,79.291,0.78632204]
[1770954134946,0.1,79.32,79.3,4.2023405]
[1770954135153,0.1,79.32,79.301,0.78632204]
[1770954136046,4.3023405,79.32,79.301,0.78632204]
[1770954137236,0.1,79.32,79.301,0.78632204]
[1770954137434,0.1,79.32,79.303,0.78632204]
[1770954141041,4.3023405,79.32,79.303,0.78632204]
[1770954141346,0.1,79.32,79.303,0.78632204]
[1770954141936,12.60573056,79.329,79.301,0.73632204]
[1770954147052,12.60185244,79.354,79.321,0.73632204]
[1770954147941,17.21849336,79.358,79.321,0.73632204]
[1770954148137,12.60120084,79.358,79.321,0.73632204]
[1770954148353,0.1,79.38,79.331,0.68525647]
[1770954148354,4.2023405,79.37,79.331,0.68525647]
[1770954148934,12.59937759,79.369,79.341,0.68525647]
[1770954149747,0.19942001,79.368,79.341,0.68525647]
[1770954150051,4.61729252,79.376,79.341,0.68525647]
[1770954150052,4.2023405,79.36,79.341,0.68525647]
[1770954151758,4.40073263,79.36,79.341,0.68525647]
[1770954151953,0.19805721,79.359,79.336,13.29688644]
[1770954152157,0.19805721,79.359,79.332,13.29756804]
[1770954152467,0.19805721,79.359,79.333,0.69239062]
[1770954153247,0.19805721,79.359,79.334,12.60493609]
[1770954154457,12.60112402,79.358,79.333,0.69239062]
[1770954154638,0.19706989,79.357,79.333,0.69239062]
[1770954155553,0.19706989,79.357,79.333,13.2973978]
[1770954155752,0.19706989,79.357,79.334,0.69390043]
[1770954157143,0.19706989,79.357,79.335,13.29867764]
[1770954157658,0.19706989,79.357,79.336,0.69390043]
[1770954160349,0.19706989,79.357,79.331,0.69390043]
[1770954162858,4.2023405,79.36,79.333,0.69390043]
[1770954163043,0.19429687,79.359,79.333,0.69390043]
[1770954164858,0.19429687,79.359,79.334,12.60493609]
[1770954165066,0.19429687,79.359,79.335,0.69390043]
[1770954166059,0.19429687,79.359,79.336,12.60461833]
[1770954166264,0.19429687,79.359,79.337,0.69390043]
[1770954166959,0.19344416,79.357,79.337,0.69390043]
[1770954167761,34.9,79.366,79.337,0.69390043]
[1770954168063,0.19288773,79.365,79.337,0.69390043]
[1770954168255,0.19288773,79.359,79.339,0.69390043]
[1770954168659,0.19288773,79.349,79.326,0.69390043]
[1770954169064,0.19261528,79.339,79.301,0.69390043]
[1770954170264,0.19261528,79.339,79.302,12.61002244]
[1770954170551,0.19261528,79.339,79.303,0.69390043]
[1770954170752,4.38392507,79.34,79.311,0.69390043]
[1770954170966,0.19208344,79.338,79.311,0.69390043]
[1770954171575,4.19157828,79.34,79.311,0.69390043]
[1770954172470,4.38339941,79.34,79.313,0.69390043]
[1770954172767,0.19182113,79.339,79.313,0.69390043]
[1770954175873,0.19182113,79.339,79.314,12.60811458]
[1770954176074,0.19182113,79.339,79.315,0.69390043]
[1770954176365,4.19157828,79.34,79.315,0.69390043]
[1770954176570,4.38238359,79.34,79.315,0.69390043]
[1770954177152,4.38213669,79.34,79.315,0.69390043]
[1770954177349,0.19055841,79.339,79.315,0.69390043]
[1770954177966,0.19055841,79.339,79.316,12.60779666]
[1770954178166,0.19055841,79.339,79.317,0.69390043]
[1770954179279,4.19157828,79.34,79.319,0.69390043]
[1770954181577,4.19157828,79.35,79.321,0.67903941]
[1770954181757,0.18938116,79.368,79.331,0.67903941]
[1770954184861,0.18938116,79.368,79.33,4.19157828]
[1770954184862,0.18845947,79.377,79.341,0.67903941]
[1770954185959,0.18823518,79.383,79.341,0.67903941]
[1770954187279,0.18823518,79.383,79.343,0.67903941]
[1770954188086,12.59779034,79.379,79.343,0.67903941]
[1770954188290,0.1877942,79.378,79.343,0.67903941]
[1770954191181,16.88936292,79.38,79.345,0.67903941]
[1770954191392,17.07650703,79.38,79.345,0.67903941]
[1770954191568,0.18714411,79.379,79.345,0.67903941]
[1770954192392,0.18692802,79.369,79.345,0.67903941]
[1770954193369,0.18692802,79.369,79.347,0.67903941]
[1770954194470,4.19157828,79.37,79.349,0.67903941]
[1770954194666,0.18652965,79.376,79.349,0.67903941]
[1770954195580,4.29157828,79.38,79.351,0.67903941]
[1770954195783,0.1,79.38,79.351,0.67903941]
[1770954197980,0.1,79.38,79.353,0.67903941]
[1770954198289,0.1,79.38,79.361,0.67903941]
[1770954200486,0.1,79.38,79.363,0.67903941]
[1770954202490,0.1,79.38,79.365,0.67903941]
[1770954203489,0.1,79.38,79.367,0.67903941]
[1770954203989,0.18477678,79.379,79.362,13.2794764]
[1770954204294,0.18477678,79.379,79.363,0.67903941]
[1770954204998,0.1,79.38,79.364,12.60017136]
[1770954205184,0.1,79.38,79.365,0.67903941]
[1770954206995,0.1,79.38,79.366,12.59985384]
[1770954207197,0.1,79.38,79.367,0.67903941]
[1770954208699,4.29157828,79.38,79.367,0.67903941]
[1770954208899,0.1,79.38,79.367,0.67903941]
[1770954211494,0.1,79.38,79.351,13.26668268]